Workbook

Sheet 17 ноября
J1: Утверждаю:
J2: Директор школы | M2: Н.П.Семенов
F4: МЕНЮ ДНЯ | L4: ='[1]9'!$B$1 -> 17 | M4: ноябрь | N4: 2025 год.
E6: МБОУ"ПАВЛОВСКАЯ СОШ"
A7: 9
A8: ПРИЕМ | B8: РАЗДЕЛ | C8: № РЕЦ. | D8: БЛЮДО | I8: ВЫХОД | J8: ЦЕНА | K8: КАЛОРИЙ | L8: БЕЛКИ | M8: ЖИРЫ | N8: УГЛЕВО
A9: ПИЩИ | I9: г | K9: НОСТЬ | N9: ДЫ
B10: ОВЗ | D10: 7-11 лет
A11: ЗАВТРАК | C11: 205 | D11: ='[2]9'!$B$7 -> КАША МАННАЯ МОЛОЧНАЯ | I11: 200 | J11: ='[2]9'!$BK$7 -> 19.71 | K11: 278 | L11: 5.5 | M11: 7.4 | N11: 27.3
C12: №8 | D12: ='[2]9'!$B$8 -> БАТОН | I12: 30 | J12: ='[2]9'!$BK$8 -> 3.51 | K12: 85.7 | L12: 2.4 | M12: 0.8 | N12: 16.7
C13: 300 | D13: ='[2]9'!$B$9 -> ЧАЙ | I13: 200 | J13: ='[2]9'!$BK$9 -> 1.28 | K13: 36 | L13: 0.2 | N13: 9.1
D14: ИТОГО | I14: =SUM(I11:I13) -> 430 | J14: =SUM(J11:J13) -> 24.51 | K14: =SUM(K11:K13) -> 399.7 | L14: =SUM(L11:L13) -> 8.1 | M14: =SUM(M11:M13) -> 8.2 | N14: =SUM(N11:N13) -> 53.1
D15: от 12 и старше лет
C16: 205 | D16: ='[2]9'!$B$22 -> КАША МАННАЯ МОЛОЧНАЯ | I16: 200 | J16: ='[2]9'!$BK$22 -> 19.71 | K16: 278 | L16: 5.5 | M16: 7.4 | N16: 27.3
C17: №8 | D17: ='[2]9'!$B$23 -> БАТОН | I17: 30 | J17: ='[2]9'!$BK$23 -> 3.51 | K17: 85.7 | L17: 2.4 | M17: 0.8 | N17: 16.7
C18: 300 | D18: ='[2]9'!$B$24 -> ЧАЙ | I18: 200 | J18: ='[2]9'!$BK$24 -> 1.28 | K18: 36 | L18: 0.2 | N18: 9.1
D19: ИТОГО | I19: =SUM(I16:I18) -> 430 | J19: =SUM(J16:J18) -> 24.51 | K19: =SUM(K16:K18) -> 399.7 | L19: =SUM(L16:L18) -> 8.1 | M19: =SUM(M16:M18) -> 8.2 | N19: =SUM(N16:N18) -> 53.1
B20: 5-11 класс
A21: ОБЕД | D21: от 12 и старше лет
C22: 15(1)№6 | D22: ='[1]9'!$B$21 -> САЛАТ ИЗ БЕЛОКАЧАННОЙ КАПУСТЫ | I22: 100 | J22: ='[1]9'!$BK$21 -> 1.26 | K22: 94 | L22: 4.5 | M22: 10.3
C23: 206 | D23: ='[1]9'!$B$22 -> СУП КАРТОФЕЛЬНЫЙ С ГОРОХОМ | I23: 250 | J23: ='[1]9'!$BK$22 -> 6.71 | K23: =F23 -> 0 | L23: =G23 -> 0 | M23: =H23 -> 0 | N23: =I23 -> 250
C24: №32 | D24: ='[1]9'!$B$23 -> ЖАРКОЕ ПО ДОМАШНЕМУ | I24: 200 | J24: ='[1]9'!$BK$23 -> 44.75 | K24: 326.2 | L24: 9.78 | M24: 14.1 | N24: 19.88
D25: ='[1]9'!$B$24 -> 0 | J25: ='[1]9'!$BK$24 -> 0.00
C26: 207№310 | D26: ='[1]9'!$B$25 -> КОМПОТ ИЗ СУХОФРУКТОВ | I26: 200 | J26: ='[1]9'!$BK$25 -> 4.76 | K26: 123 | L26: 0.5 | M26: 0.1 | N26: 30.9
C27: №7 | D27: ='[1]9'!$B$26 -> ХЛЕБ | I27: 50 | J27: ='[1]9'!$BK$26 -> 3.25 | K27: 108.6 | L27: 3.96 | M27: 0.72 | N27: 1.38
D28: ='[1]9'!$B$27 -> 0 | J28: ='[1]9'!$BK$27 -> 0.00
D29: ='[3]10'!$B$28 -> 0 | J29: ='[3]10'!$BK$28 -> 0.00
D30: ИТОГО | I30: =SUM(I22:I29) -> 800 | J30: =SUM(J22:J29) -> 60.73 | K30: =SUM(K21:K29) -> 651.8 | L30: =SUM(L21:L29) -> 18.74 | M30: =SUM(M21:M29) -> 25.22 | N30: =SUM(N21:N29) -> 302.16
D34: Составил Агеева Г.Н. | M34: Повар Фролова Л.Н.
